[Event "American Cup Champions 2022"]
[Site "Saint Louis"]
[Date "2022.04.20"]
[Round "1.1"]
[White "Aronian, Levon"]
[Black "Robson, Ray"]
[Result "1-0"]
[ECO "A13"]
[WhiteElo "2772"]
[BlackElo "2676"]
[Annotator "TA"]
[PlyCount "103"]
[EventDate "2022.04.20"]
[EventType "k.o."]
[EventCountry "USA"]
[SourceTitle "playchess.com"]
[Source "ChessBase"]
[SourceQuality "1"]
[TimeControl "5400+30"]

{[%evp 14,103,4,9,13,17,7,2,12,8,20,0,0,6,14,0,0,0,0,-18,0,-13,-16,-22,38,27,28,32,25,32,41,44,51,62,66,66,55,51,87,88,97,88,104,104,103,95,89,83,81,83,110,106,154,144,144,144,144,144,426,389,680,664,595,580,602,547,12820,12827,12825,4812,12830,12830,12831,12830,12830,12827,12831,12831,12833,12242,12836,12837,12837,12837,12841,12841,12841,12842,12842,12842,12843,12843]} 1. c4 {[%emt 0:00:04]} e6 {[%emt 0:00:22]} 2. g3 {[%emt 0:00:32]} d5 {[%emt 0:00:31]} 3. Bg2 {[%emt 0:00:07]} d4 {[%emt 0:01:15]} 4. Nf3 {[%emt 0:00:41]} c5 {[%emt 0:00:58]} 5. O-O {[%emt 0:02:10]} Nc6 {[%emt 0:01:35]} 6. e3 {[%emt 0:00:25]} Nf6 {[%emt 0:00:50]} 7. exd4 {[%emt 0:00:22]} cxd4 {[%emt 0:00:18]} 8. d3 {[%emt 0:00:06]} Bd6 {[%emt 0:01:10] A13: English Opening: 1...e6.} 9. Bg5 {[%emt 0:01:01]} h6 {[%emt 0:01:07]} 10. Bxf6 {[%emt 0:00:04]} Qxf6 {[%emt 0:00:09] The position is equal.} 11. Nbd2 {[%emt 0:00:06][%cal Bb1d2,Bd2b3,Bb3c5][%mdl 32]} Qe7 {[%emt 0:02:13]} 12. Re1 {[%emt 0:08:24]} O-O {[%emt 0:05:21]} 13. Nb3 {[%emt 0:07:34]} Qf6 {[%emt 0:07:54]} 14. Nfd2 {[%emt 0:02:52][%cal Bf3d2,Bd2b3,Bb3d4][%mdl 32]} Bc7 {[%emt 0:01:15]} 15. a3 {[%emt 0:04:18]} a5 {[%emt 0:06:11]} 16. Nc5 {[%emt 0:01:11][%cal Ob2b4]} Qe7 {[%emt 0:05:14]} 17. Na4 {[%emt 0:04:10]} Bd7 {[%emt 0:05:12]} 18. Nb3 {[%emt 0:05:58] [#]} b6 $146 {[%emt 0:13:18]} (18... Rfb8 $11) ({Predecessor:} 18... Rfd8 19. Nbc5 Bc8 20. b4 axb4 21. axb4 Nxb4 22. Nxb7 Bxb7 23. Bxb7 Ra5 24. Be4 Qe8 25. Re2 Rb8 26. Nb2 Na2 27. Na4 Nb4 28. Nb2 Na2 29. Na4 Nb4 {½-½ (29) Lubbe,N (2427)-Can,E (2569) Reykjavik 2021}) 19. Bxc6 $14 {[%emt 0:14:26]} Bxc6 {[%emt 0:00:11]} 20. Nxd4 {[%emt 0:00:04]} Bb7 {[%emt 0:01:20]} 21. Nb5 {[%emt 0:00:56]} Qd7 {[%emt 0:05:21]} 22. Qe2 {[%emt 0:00:28]} Rad8 {[%emt 0:02:42]} 23. d4 {[%emt 0:02:24]} Qc6 {[%emt 0:06:31][%csl Gb7][%cal Rc6h1] [#] Prevents f3.} 24. f3 $1 {[%emt 0:00:29]} Rd7 {[%emt 0:10:19]} 25. Kg2 $1 {[%emt 0:04:52]} ({But not} 25. Nxc7 Qxa4 26. Nb5 Ba6 $15) 25... Bd8 {[%emt 0:01:16]} 26. Nac3 {[%emt 0:01:53]} Bf6 {[%emt 0:01:03]} 27. Rad1 {[%emt 0:03:20]} Qc8 {[%emt 0:03:16]} 28. d5 {[%emt 0:02:41]} Bxc3 {[%emt 0:04:57]} 29. Nxc3 {[%emt 0:00:28]} exd5 {[%emt 0:00:28]} 30. Nxd5 {[%emt 0:01:33]} Bxd5 {[%emt 0:00:34]} 31. Rxd5 {[%emt 0:02:00]} ({Don't play} 31. cxd5 Rfd8 $11) 31... Rfd8 {[%emt 0:09:32]} 32. Qe4 {[%emt 0:03:16]} b5 {[%emt 0:01:51] [#]} ({Black should try} 32... Rxd5 33. cxd5 Qd7) 33. Rxd7 $1 $16 {[%emt 0:01:29] 0x0.0023821a128edp-1022s more active pieces.} ({Don't take} 33. Rxb5 $6 Rd4 34. Qe3 Qxc4 $14) 33... Qxd7 {[%emt 0:00:27][%mdl 4096] Endgame KQR-KQR} 34. c5 {[%emt 0:00:24]} b4 {[%emt 0:01:14]} 35. axb4 {[%emt 0:02:16]} axb4 {[%emt 0:00:53][%mdl 8192] Black cannot hold the game after this.} (35... Qd2+ $16 36. Re2 Qxb4) 36. Qxb4 $18 {[%emt 0:02:54]} Qd2+ $2 {[%emt 0:00:35]} (36... Qd5 37. Re2 Qd3) 37. Qxd2 {[%emt 0:00:06] White is clearly winning.} Rxd2+ {[%emt 0:00:06] KR-KR} 38. Kh3 {[%emt 0:00:05] And now Rc1 would win.} Rxb2 {[%emt 0:00:09]} 39. Rc1 {[%emt 0:00:04] Inhibits Rc2. Strongly threatening c6.} Kf8 {[%emt 0:00:40]} 40. c6 {[%emt 0:01:22][%cal Bc5c6,Bc6c7][%mdl 32] White threatens c7 and mate.} Rb8 {[%emt 0:00:13]} 41. Kg4 {[%emt 0:00:24]} Ke7 {[%emt 0:01:41]} 42. c7 {[%emt 0:00:56]} Rc8 {[%emt 0:00:06]} 43. Kh5 {[%emt 0:00:11]} Kf6 {[%emt 0:01:10]} 44. Rc6+ {[%emt 0:00:09]} Ke5 {[%emt 0:00:27]} 45. f4+ {[%emt 0:00:50][%cal Bf3f4,Bf4f5][%mdl 32]} Kd5 {[%emt 0:00:33]} 46. Rc1 {[%emt 0:00:08]} Kd6 {[%emt 0:00:30]} 47. f5 {[%emt 0:00:37]} Ke5 {[%emt 0:00:30]} 48. g4 {[%emt 0:00:17]} Kf6 {[%emt 0:00:31]} 49. Rc6+ {[%emt 0:00:09]} Ke7 {[%emt 0:00:28]} 50. f6+ {[%emt 0:00:07]} Kd7 {[%emt 0:00:32]} 51. Rc2 {[%emt 0:00:24]} gxf6 {[%emt 0:00:12]} 52. Kxh6 {[%emt 0:00:13] Weighted Error Value: White=0.02 (flawless) /Black=0.29 (precise)} 1-0

[Event "American Cup Champions 2022"]
[Site "Saint Louis"]
[Date "2022.04.20"]
[Round "1.2"]
[White "Dominguez Perez, Leinier"]
[Black "Shankland, Sam"]
[Result "1/2-1/2"]
[ECO "C54"]
[WhiteElo "2752"]
[BlackElo "2708"]
[Annotator "TA"]
[PlyCount "64"]
[EventDate "2022.04.20"]
[EventType "k.o."]
[EventCountry "USA"]
[SourceTitle "playchess.com"]
[Source "ChessBase"]
[SourceQuality "1"]
[TimeControl "5400+30"]

{[%evp 15,64,12,22,11,28,-5,0,0,7,0,0,0,0,0,10,6,7,7,7,7,12,9,11,0,0,0,0,0,0,15,9,0,-7,-5,0,0,0,0,0,0,0,0,0,0,0,0,0,0,0,0,0]} 1. e4 {[%emt 0:00:03]} e5 {[%emt 0:00:09]} 2. Nf3 {[%emt 0:00:08]} Nc6 {[%emt 0:00:03]} 3. Bc4 {[%emt 0:00:08]} Bc5 {[%emt 0:00:07]} 4. c3 {[%emt 0:00:06]} Nf6 {[%emt 0:00:06]} 5. d3 {[%emt 0:00:06]} O-O {[%emt 0:00:05]} 6. O-O {[%emt 0:00:08]} d5 {[%emt 0:00:20]} 7. exd5 {[%emt 0:00:08]} Nxd5 {[%emt 0:00:04]} 8. Re1 {[%emt 0:00:14]} Bg4 {[%emt 0:00:15]} 9. h3 {[%emt 0:00:25] 9.Nbd2 deserves study. C54: Giuoco Piano: 4 c3 Nf6, main lines with 5 d4 and 5 d3.} Bh5 {[%emt 0:00:04]} 10. a4 {[%emt 0:00:25]} a5 {[%emt 0:00:27] Against b4. The position is equal.} 11. Nbd2 {[%emt 0:01:03]} Nb6 {[%emt 0:00:21]} 12. Bb3 {[%emt 0:03:26]} Qxd3 {[%emt 0:00:13]} 13. Nxe5 {[%emt 0:00:07]} Qf5 {[%emt 0:00:04]} 14. Nef3 $1 {[%emt 0:00:10]} ({Not} 14. Ndf3 $2 Nxe5 15. Rxe5 Qxe5 16. Nxe5 Bxd1 17. Bxd1 Rfe8 $19) 14... Rae8 {[%emt 0:00:37]} 15. g4 $1 {[%emt 0:00:48]} Bxg4 {[%emt 0:00:16]} 16. hxg4 {[%emt 0:00:09]} Qxg4+ {[%emt 0:00:02]} 17. Kh1 {[%emt 0:00:09] next Rxe8 is good for White.} Bxf2 {[%emt 0:00:45] [#]} 18. Nh2 $1 {[%emt 0:01:34] [#]} Rxe1+ $146 {[%emt 0:00:09] [#]} ({Predecessor:} 18... Qxd1 19. Rxd1 Re2 20. Ndf3 Rfe8 {½-½ (20) Kadric,D (2573)-Tari,A (2653) Terme Catez 2022}) 19. Qxe1 $1 {[%emt 0:00:09] Really sharp!} Qg3 {[%emt 0:00:05]} 20. Qf1 {[%emt 0:00:28] aiming for Ne4.} Re8 {[%emt 0:00:26] Prevents Ne4.} 21. Ndf3 {[%emt 0:00:17] Inhibits Re1. Threatens to win with Bg5.} Ne5 $1 {[%emt 0:00:32]} 22. Qe2 {[%emt 0:01:13]} Kf8 $1 $132 {[%emt 0:00:35][%mdl 2048] Black is not holding back} 23. Bd2 {[%emt 0:00:08]} Ng4 {[%emt 0:12:34]} 24. Qf1 {[%emt 0:02:22]} Ne3 {[%emt 0:01:04]} 25. Bxe3 {[%emt 0:03:40]} Rxe3 {[%emt 0:00:10]} 26. Ng5 {[%emt 0:00:56]} Qxg5 {[%emt 0:07:48]} 27. Qxf2 {[%emt 0:00:31][%csl Gb3][%cal Rf2f7]} Qe7 {[%emt 0:01:20]} 28. Bxf7 {[%emt 0:20:14] Be6+ is the strong threat.} Re2 {[%emt 0:08:32]} 29. Qf3 {[%emt 0:03:13]} Re3 {[%emt 0:07:44]} 30. Qf2 {[%emt 0:09:00] Black must now prevent Be6+.} Re2 {[%emt 0:00:08]} 31. Qf3 {[%emt 0:01:44]} Re3 {[%emt 0:00:17]} 32. Qf2 {[%emt 0:00:05] Hoping for Be6+.} Re2 {[%emt 0:00:23] A balanced but interesting game.  Weighted Error Value: White=0.03 (flawless) /Black=0.02 (flawless)} 1/2-1/2

[Event "American Cup Champions 2022"]
[Site "Saint Louis"]
[Date "2022.04.21"]
[Round "1.2"]
[White "Shankland, Sam"]
[Black "Dominguez Perez, Leinier"]
[Result "1/2-1/2"]
[ECO "B44"]
[WhiteElo "2708"]
[BlackElo "2752"]
[Annotator "TA"]
[PlyCount "88"]
[EventDate "2022.04.20"]
[EventType "k.o."]
[EventCountry "USA"]
[SourceTitle "playchess.com"]
[Source "ChessBase"]
[SourceQuality "1"]
[TimeControl "5400+30"]

{[%evp 18,88,5,0,0,0,0,0,0,0,0,0,0,0,0,0,0,0,6,0,7,0,0,0,0,0,0,0,0,0,0,0,0,0,0,0,0,0,0,0,0,0,0,0,0,0,0,0,0,0,0,0,0,0,0,0,0,0,0,0,0,0,0,0,0,0,0,0,0,0,0,0,0]} 1. c4 {[%emt 0:00:10]} c5 {[%emt 0:00:06]} 2. Nf3 {[%emt 0:00:08]} Nf6 {[%emt 0:00:06]} 3. Nc3 {[%emt 0:00:04]} Nc6 {[%emt 0:00:06]} 4. d4 {[%emt 0:00:05]} cxd4 {[%emt 0:00:06]} 5. Nxd4 {[%emt 0:00:03]} e6 {[%emt 0:00:06]} 6. e4 {[%emt 0:00:06]} Bb4 {[%emt 0:00:26]} 7. Nxc6 {[%emt 0:00:06]} bxc6 {[%emt 0:00:08]} 8. Bd3 {[%emt 0:00:03]} e5 {[%emt 0:00:17]} 9. O-O {[%emt 0:00:07]} O-O {[%emt 0:00:20]} 10. Qc2 {[%emt 0:00:03] The position is equal. 10.h3 gains popularity.} Bc5 {[%emt 0:03:33] has lost popularity (10...d6). B44: Sicilian: Taimanov: 5 Nb5.} 11. Na4 {[%emt 0:00:14]} Bd4 {[%emt 0:00:17] [#]} 12. Be3 $146 {[%emt 0:00:05]} ({Predecessor:} 12. Bg5 h6 13. Bh4 d6 14. Kh1 g5 15. Bg3 Be6 16. Rad1 Rb8 17. b3 Qe7 18. Be2 {1-0 (43) Cajnko,L-Hocevar,B Maribor 2001}) 12... Bxe3 {[%emt 0:02:22]} 13. fxe3 {[%emt 0:00:07]} d6 {[%emt 0:00:05]} 14. c5 {[%emt 0:00:05]} Bg4 {[%emt 0:03:14]} 15. h3 {[%emt 0:00:23]} Bh5 {[%emt 0:02:34]} 16. Rac1 {[%emt 0:00:09]} dxc5 {[%emt 0:32:43]} 17. Nxc5 {[%emt 0:03:28]} Qe7 {[%emt 0:01:05]} 18. Nb3 {[%emt 0:12:51]} a5 {[%emt 0:07:54]} 19. Qc5 {[%emt 0:06:18]} Qd8 {[%emt 0:05:01]} 20. Qc3 {[%emt 0:01:05]} Re8 {[%emt 0:07:32][%cal Bf8e8,Be8b8,Bb8b5][%mdl 32]} 21. Nc5 {[%emt 0:03:40]} h6 {[%emt 0:04:35]} 22. Bc2 {[%emt 0:05:55]} Bg6 {[%emt 0:01:21]} 23. Rfd1 {[%emt 0:04:17]} Qe7 {[%emt 0:00:01]} 24. Rd2 {[%emt 0:03:25]} Reb8 {[%emt 0:03:07]} 25. a3 {[%emt 0:02:24]} Kh7 {[%emt 0:02:19]} 26. Kh2 {[%emt 0:07:32]} Rb5 {[%emt 0:04:04]} 27. Bd3 {[%emt 0:05:09]} Rbb8 {[%emt 0:00:02]} 28. Bc2 {[%emt 0:01:14][%cal Bd3c2,Bc2a4,Ba4c6,Bc6e4,Be4d5][%mdl 32]} Rb5 {[%emt 0:00:06]} 29. Ba4 {[%emt 0:08:42]} Rxc5 {[%emt 0:02:49]} 30. Qxc5 {[%emt 0:00:40]} Qxc5 {[%emt 0:00:02]} 31. Rxc5 {[%emt 0:00:11]} Nxe4 {[%emt 0:00:03]} 32. Bxc6 {[%emt 0:00:30]} Rc8 {[%emt 0:00:02]} 33. Bxe4 {[%emt 0:01:05]} Rxc5 {[%emt 0:00:01]} 34. Rd5 {[%emt 0:00:49]} Rxd5 {[%emt 0:00:04]} 35. Bxd5 $11 {[%emt 0:00:04][%mdl 4096] [#] Endgame Black must now prevent b4. KB-KB} Kg8 $1 {[%emt 0:00:09]} 36. b4 {[%emt 0:02:49]} axb4 {[%emt 0:00:04]} 37. axb4 {[%emt 0:00:04] Strongly threatening b5.} Bd3 {[%emt 0:00:39]} 38. Kg3 {[%emt 0:07:22]} Kf8 {[%emt 0:00:05]} 39. e4 {[%emt 0:03:30]} Ke7 {[%emt 0:00:30]} 40. Kf2 {[%emt 0:00:38]} f6 {[%emt 0:01:41]} 41. Ke3 {[%emt 0:00:28]} Bf1 {[%emt 0:00:11]} 42. Kf2 {[%emt 0:00:03]} Bd3 {[%emt 0:00:04]} 43. Ke3 {[%emt 0:00:03]} Bf1 {[%emt 0:00:13]} 44. Kf2 {[%emt 0:00:03]} Bd3 {[%emt 0:00:23] An even fight not without its subleties.  Weighted Error Value: White=0.01 (flawless) /Black=0.00 (flawless)} 1/2-1/2

[Event "American Cup Champions 2022"]
[Site "Saint Louis"]
[Date "2022.04.21"]
[Round "1.2"]
[White "Xiong, Jeffery"]
[Black "Caruana, Fabiano"]
[Result "1/2-1/2"]
[ECO "A30"]
[WhiteElo "2686"]
[BlackElo "2792"]
[Annotator "TA"]
[PlyCount "68"]
[EventDate "2022.04.20"]
[EventType "k.o."]
[EventCountry "USA"]
[SourceTitle "playchess.com"]
[Source "ChessBase"]
[SourceQuality "1"]
[TimeControl "5400+30"]

{[%evp 9,68,5,5,5,0,0,0,0,12,0,0,0,0,-13,-2,-21,10,10,8,6,9,0,17,10,8,4,4,13,12,8,11,13,7,0,0,0,0,0,0,0,0,0,0,0,0,0,0,0,0,0,0,0,0,-9,0,0,0,-9,0,0,0]} 1. c4 {[%emt 0:00:06]} c5 {[%emt 0:00:07]} 2. Nf3 {[%emt 0:00:11]} Nf6 {[%emt 0:00:17]} 3. b3 {[%emt 0:00:45]} d5 {[%emt 0:05:19]} 4. cxd5 {[%emt 0:00:11]} Nxd5 {[%emt 0:00:03]} 5. Bb2 {[%emt 0:00:18]} Nc6 {[%emt 0:00:16] The position is equal.} 6. Nc3 {[%emt 0:00:23] A30: Symmetrical English: Double Fianchetto and Hedgehog.} Nxc3 {[%emt 0:08:06]} 7. Bxc3 {[%emt 0:00:26]} f6 {[%emt 0:00:12]} 8. e3 {[%emt 0:01:37]} e5 {[%emt 0:01:40]} 9. Qc2 {[%emt 0:04:38]} Be6 {[%emt 0:04:01]} 10. Bd3 {[%emt 0:01:21]} g6 {[%emt 0:08:24] [#]} 11. Be4 $146 {[%emt 0:01:10]} ({Predecessor:} 11. O-O Bg7 12. Bb5 Rc8 13. d4 cxd4 14. exd4 O-O 15. Qe2 a6 16. Bd3 Re8 17. dxe5 fxe5 18. Bc4 Nd4 19. Bxe6+ Nxe6 20. Rad1 Nd4 21. Bxd4 exd4 22. Qd2 Re6 {½-½ (22) Necula,I (2417)-Repanic,F (2371) ICCF email 2019}) 11... Rc8 {[%emt 0:03:19]} 12. Rd1 {[%emt 0:04:32]} Bd6 {[%emt 0:04:22]} 13. O-O {[%emt 0:13:01]} Qc7 {[%emt 0:01:05]} 14. Qb1 {[%emt 0:07:51]} O-O {[%emt 0:02:51]} 15. Rc1 {[%emt 0:09:38]} Qf7 {[%emt 0:11:24]} 16. d4 {[%emt 0:03:51]} exd4 {[%emt 0:03:41]} 17. exd4 {[%emt 0:00:03]} c4 {[%emt 0:00:19]} 18. d5 {[%emt 0:05:42]} Bxd5 {[%emt 0:00:04]} 19. Bxd5 {[%emt 0:00:10]} Qxd5 {[%emt 0:00:06]} 20. Rcd1 {[%emt 0:00:20]} Qe6 {[%emt 0:00:15]} 21. Rfe1 {[%emt 0:03:25]} Be5 {[%emt 0:06:46]} 22. bxc4 {[%emt 0:02:20]} Qxc4 {[%emt 0:00:14]} 23. Bxe5 {[%emt 0:00:32]} Nxe5 {[%emt 0:00:21]} 24. Qxb7 {[%emt 0:00:56]} Qxa2 {[%emt 0:02:13]} 25. Ra1 {[%emt 0:00:17][%cal Bd1a1,Ba1a7,Ba7b7,Bb7b8][%mdl 32]} Qf7 {[%emt 0:00:53]} 26. Rxa7 {[%emt 0:00:22]} Nxf3+ {[%emt 0:00:19]} 27. gxf3 {[%emt 0:00:04] [#] Re7 would kill now.} Qxb7 {[%emt 0:00:05]} 28. Rxb7 $11 {[%emt 0:00:08][%mdl 4096] Endgame Black must now prevent Ree7. KRR-KRR} Rf7 {[%emt 0:00:04]} 29. Ree7 {[%emt 0:00:12]} Rcf8 {[%emt 0:00:14]} 30. Rxf7 {[%emt 0:00:14]} Rxf7 {[%emt 0:00:04]} 31. Rb8+ {[%emt 0:00:09]} Rf8 {[%emt 0:00:03]} 32. Rb7 {[%emt 0:00:05]} Rf7 {[%emt 0:00:01]} 33. Rb8+ {[%emt 0:00:07]} Rf8 {[%emt 0:00:02]} 34. Rb7 {[%emt 0:00:07]} Rf7 {[%emt 0:00:09] An interesting draw.  Weighted Error Value: White=0.03 (flawless) /Black=0.03 (flawless)} 1/2-1/2

[Event "American Cup Champions 2022"]
[Site "Saint Louis"]
[Date "2022.04.21"]
[Round "1.2"]
[White "Sevian, Samuel"]
[Black "So, Wesley"]
[Result "1/2-1/2"]
[ECO "D35"]
[WhiteElo "2684"]
[BlackElo "2772"]
[Annotator "TA"]
[PlyCount "74"]
[EventDate "2022.04.20"]
[EventType "k.o."]
[EventCountry "USA"]
[SourceTitle "playchess.com"]
[Source "ChessBase"]
[SourceQuality "1"]
[TimeControl "5400+30"]

{[%evp 18,74,25,22,25,22,25,17,23,23,24,23,36,38,47,39,64,56,55,54,57,55,58,31,51,30,54,54,54,54,54,56,58,49,83,85,87,79,78,78,78,78,78,67,71,73,74,66,66,66,64,67,68,0,52,0,70,0,36]} 1. d4 {[%emt 0:00:04]} Nf6 {[%emt 0:00:14]} 2. c4 {[%emt 0:00:11]} e6 {[%emt 0:00:06]} 3. Nc3 {[%emt 0:00:16]} d5 {[%emt 0:00:15]} 4. cxd5 {[%emt 0:01:15]} exd5 {[%emt 0:00:03]} 5. Bg5 {[%emt 0:00:39]} c6 {[%emt 0:00:08]} 6. e3 {[%emt 0:00:12]} Bf5 {[%emt 0:00:25]} 7. Qf3 {[%emt 0:04:52]} Bg6 {[%emt 0:00:04]} 8. Bxf6 {[%emt 0:00:15]} Qxf6 {[%emt 0:00:06]} 9. Qxf6 {[%emt 0:00:10]} gxf6 {[%emt 0:00:06]} 10. Nge2 {[%emt 0:02:28][%cal Bg1e2,Be2f4,Bf4h5,Bh5g7][%mdl 32]} Nd7 {[%emt 0:00:58] D35: Queen's Gambit Declined: Exchange Variation.} 11. h4 {[%emt 0:00:56]} Bd6 {[%emt 0:01:54]} 12. g3 {[%emt 0:02:08] [#]} Ke7 $146 {[%emt 0:05:21]} ({Predecessor:} 12... Nb6 13. Nf4 Bxf4 14. gxf4 Bh5 15. Bd3 Ke7 16. Kd2 Rag8 17. Rhg1 Bf3 18. Rg3 Rxg3 19. fxg3 {½-½ (36) Georgiev,K (2689)-Mastrovasilis,A (2537) Golden Sands 2012}) 13. Nf4 {[%emt 0:13:18]} Nb6 {[%emt 0:11:03]} 14. h5 {[%emt 0:04:37]} Bf5 {[%emt 0:02:47]} 15. Bd3 {[%emt 0:00:26]} Be6 {[%emt 0:00:55]} 16. h6 {[%emt 0:06:24]} Rag8 {[%emt 0:05:43]} 17. O-O-O {[%emt 0:07:01]} (17. Ke2 {is interesting.} Rg5 18. Rag1 Nc4 19. b3) 17... Nd7 {[%emt 0:13:23]} 18. Nh5 {[%emt 0:09:21] Pair of Knights!} Kd8 {[%emt 0:01:48]} 19. Ng7 {[%emt 0:02:49]} Bf8 {[%emt 0:00:04]} 20. Nf5 {[%emt 0:01:08]} (20. Nxe6+ fxe6 21. Ne2 Bd6 $11) (20. Ne2 {with more complications.} Bg4 21. Rh4 Bf3 22. Rf4) 20... Nb6 {[%emt 0:04:44]} 21. Ne2 {[%emt 0:13:51]} Nc4 {[%emt 0:02:04]} 22. Rh4 {[%emt 0:00:22]} Nd6 {[%emt 0:09:55]} 23. Nxd6 {[%emt 0:00:30]} Bxd6 {[%emt 0:00:02]} 24. Nf4 {[%emt 0:00:13]} Rg5 {[%emt 0:03:01]} 25. Nh5 {[%emt 0:02:47]} f5 {[%emt 0:06:49]} 26. Ng7 {[%emt 0:02:07]} Bf8 {[%emt 0:00:52]} 27. Rdh1 {[%emt 0:00:44] &Bianco is much more active. The black rooks are badly placed.} ({Of course not} 27. Nxe6+ $6 fxe6 28. Kd2 a6 $11) 27... Bxg7 {[%emt 0:05:02]} 28. hxg7 {[%emt 0:00:26]} Rxg7 {[%emt 0:00:01]} 29. Rh5 {[%emt 0:00:13]} Ke7 {[%emt 0:00:03]} 30. Bxf5 {[%emt 0:05:15]} Bxf5 {[%emt 0:00:08]} 31. Rxf5 $16 {[%emt 0:00:04][%mdl 4096] Endgame KRR-KRR} Rg6 {[%emt 0:00:03]} 32. Kd2 {[%emt 0:00:13]} h6 {[%emt 0:00:29]} 33. Rh4 {[%emt 0:00:49]} Rf6 {[%emt 0:00:27]} 34. Re5+ {[%emt 0:00:11]} Re6 {[%emt 0:00:55]} 35. Rf5 {[%emt 0:00:34]} Rf6 {[%emt 0:00:03]} 36. Re5+ {[%emt 0:00:22]} Re6 $1 {[%emt 0:00:02]} 37. Rf5 {[%emt 0:03:21]} Rf6 {[%emt 0:00:14] Weighted Error Value: White=0.10 (very precise) /Black=0.04 (flawless)} 1/2-1/2